Workbook

Sheet Funding
B1: Joseph McAvinnue Elementary School
B2: School Year 20-21 Budget | G2: Comparison to previous year budget
B3: Category | C3: Students | D3: Weight | E3: Amount | G3: Year | H3: 19-20 | I3: 20-21 | J3: Change
B4: Weights | G4: Enrollment | H4: 472 | I4: 471.8 | J4: =I4-H4 -> -0.2
B5: All students | C5: 471.8 | D5: 4500 | E5: =C5*D5 -> 2123100 | G5: FSF Budget | H5: =4820685-107539 -> 4713146 | I5: 4713146 | J5: 0 | K5: Orig Allocation was overstated by 1 GC
B6: Economically disadvantaged | C6: 316 | D6: 1575 | E6: 497700 | G6: Other Funding | H6: =SUM(E27:E28) -> 293767.15 | I6: =SUM(E27:E28) -> 293767.15 | J6: 0
B7: Low incoming performance | C7: 0 | D7: 900 | E7: 0 | G7: Total Budget | H7: =SUM(H5:H6) -> 5006913.15 | I7: 5006913.15 | J7: 0
B8: Grades PreK-3 | C8: 379.8 | D8: 1575 | E8: 598185 | G8: $ per pupil | H8: =H7/H4 -> 10607.86684 | I8: 10612.36361 | J8: 4.49676424
B9: Grade 9 | C9: 0 | D9: 3750 | E9: 0
B10: ELL below Level 3 | C10: 70 | D10: 2750 | E10: 192500
B11: ELL Level 3 and above | C11: 83 | D11: 1400 | E11: 116200
B12: SWD substantially separate | C12: 24 | D12: 22500 | E12: 540000
B13: SWD inclusion/language | C13: 38 | D13: 6250 | E13: 237500
B15: Baseline
B16: ELL Baseline | E16: 0
B17: SWD Baseline | E17: 0
B18: General Ed Baseline | E18: 0
B20: Other Policies
B21: Transition amount | E21: =515500-107539 -> 407961 | F21: Reduced by the 1 GC overstated in current yr allocation
B22: Budget Exceptions | E22: 0 | F22: Exception Reason:
B24: FSF Total
E25: =SUM(E5:E13,E16:E18,E21:E22) -> 4713146
B26: Funding from outside FSF
B27: Title I | E27: =Budget!C152 -> 168725
B28: Other positions provided outside of FSF | E28: =SUM(Budget!G87,Budget!G93,Budget!G81, Budget!G115, Budget!G139:G142) -> 125042.15
B30: Total funding
E31: =SUM(E25,E27,E28) -> 5006913.15
B34: Summary
B35: The McAvinnue's funding decreased due to weights but was supplemented by transition policy.

Sheet Budget
A1: Joseph McAvinnue Elementary School | B1: Last year's staff | C1: Required minimum | D1: Budgeted Staff | E1: Check: Sufficient Staff? | F1: Average Salary + Benefits | G1: Amount | H1: Notes | I1: Title I Check
A2: School Year 20-21 Budget | D2: Budget in blank cells | G2: =G3-G157 -> 0.2000000002 | H2: Amount remaining to budget | I2: =B152-G152 -> 0 | J2: Amount remaining in Title I budget
A3: Positions in navy blue have been HS-only in the past | D3: Gray cells are budgeted for you | G3: =Funding!E31 -> 5006913.15 | H3: Total Allocation, All Sources | I3: =B152 -> 168725 | J3: Title I budget
A4: 2100 Principal's Office:
A5: Principal/Coordinator | B5: 1 | C5: 1 | D5: 1 | E5: =IF(D5<C5, "Please budget additional staff", "Yes") -> Yes | F5: 140268 | G5: =D5*F5 -> 140268
A6: Headmaster | B6: 0 | C6: 0 | E6: Yes | F6: 173679.8376
A7: Assistant Principal | B7: 1 | D7: 1 | E7: Yes | F7: 128579 | G7: =D7*F7 -> 128579
A8: House Deans | B8: 0 | E8: Yes | F8: 141596.3847
A9: Administrative Assistant | B9: 1 | C9: 1 | D9: 1 | E9: Yes | F9: 56107.2 | G9: =D9*F9 -> 56107.2
B10: =SUM(B5:B9) -> 3 | C10: 2 | D10: =SUM(D5:D9) -> 3 | G10: =SUM(G5:G9) -> 324954.2
A12: Coaches:
A13: Math Resource Teacher | B13: 1 | D13: 1 | E13: =IF(D13<C13, "Please budget additional staff", "Yes") -> Yes | F13: 93512 | G13: =D13*F13 -> 93512
A14: Literacy Specialist | B14: 1 | C14: 1 | D14: 1 | E14: Yes | F14: 97985 | G14: 97985
A15: Instructional Specialist | B15: 0 | C15: 0 | E15: Yes | F15: 97985 | G15: 0
A16: Additional professional development coaches | E16: Yes | F16: 97985 | G16: 0
B17: =SUM(B13:B16) -> 2 | C17: 1 | D17: =SUM(D13:D16) -> 2 | G17: =SUM(G13:G16) -> 191497
A19: General Education Teachers:
A20: Classroom Teachers
A21: PreSchool Teachers | B21: 1 | C21: 1 | D21: 1 | E21: =IF(D21<C21, "Please budget additional staff", "Yes") -> Yes | F21: 93512 | G21: =D21*F21 -> 93512
A22: Kindergarten Teachers | B22: 4 | C22: 3 | D22: 4 | E22: Yes | F22: 93512 | G22: 374048
A24: 1st Grade Teachers | B24: 4 | C24: see below | D24: 4 | E24: see below | F24: 93512 | G24: =D24*F24 -> 374048
A25: 2nd Grade Teachers | B25: 4 | C25: see below | D25: 4 | E25: see below | F25: 93512 | G25: 374048
A26: 3rd Grade Teachers | B26: 4 | C26: see below | D26: 4 | E26: see below | F26: 93512 | G26: 374048
A27: 4th Grade Teachers | B27: 4 | C27: see below | D27: 4 | E27: see below | F27: 93512 | G27: 374048
A28: 5th Grade Teachers | B28: 0 | C28: see below | E28: see below | F28: 93512 | G28: 0
A29: 6th Grade Teachers | B29: 0 | C29: see below | E29: see below | F29: 93512 | G29: 0
A30: 7th Grade Teachers | B30: 0 | C30: see below | E30: see below | F30: 93512 | G30: 0
A31: 8th Grade Teachers | B31: 0 | C31: see below | E31: see below | F31: 93512 | G31: 0
A32: Loopers | B32: 0 | C32: see below | E32: see below | F32: 93512 | G32: 0
A33: All Grades 1-8 Teachers | B33: 16 | C33: 14 | D33: =SUM(D24:D32) -> 16 | E33: =IF(D33<C33, "Please budget additional staff", "Yes") -> Yes
A36: Allied Arts
A37: Art | B37: 1 | D37: 1 | E37: =IF(D37<C37, "Please budget additional staff", "Yes") -> Yes | F37: 93512 | G37: =D37*F37 -> 93512
A38: Music | B38: 1 | D38: 1 | E38: Yes | F38: 93512 | G38: 93512
A39: Physical Education | B39: 1 | C39: 1 | D39: 1 | E39: Yes | F39: 93512 | G39: 93512
A40: Technology Ed | B40: 0 | E40: Yes | F40: 93512 | G40: 0
A41: Drama | B41: 0 | E41: Yes | F41: 93512 | G41: 0
A42: ITS | B42: 0 | E42: Yes | F42: 93512 | G42: 0
A43: Content Literacy | B43: 1 | D43: 1 | E43: Yes | F43: 93512 | G43: 93512
A44: Health | B44: 0 | E44: Yes | F44: 93512 | G44: 0
A45: Dance | B45: 0 | E45: Yes | F45: 93512 | G45: 0
A46: Library/Media Specialist | B46: 0 | E46: Yes | F46: 108441.7753 | G46: 0
A47: Other | B47: 0 | E47: Yes | F47: 93512 | G47: 0
A49: Subject Teachers (High school only)
A50: Math Teachers | B50: 0 | C50: see below | E50: see below | F50: 93512 | G50: =D50*F50 -> 0
A51: Science Teachers | B51: 0 | C51: see below | E51: see below | F51: 93512 | G51: 0
A52: Social Studies Teachers | B52: 0 | C52: see below | E52: see below | F52: 93512 | G52: 0
A53: English | B53: 0 | C53: see below | E53: see below | F53: 93512 | G53: 0
A54: Foreign Language | B54: 0 | C54: see below | E54: see below | F54: 93512 | G54: 0
A55: All HS Subject Teachers | B55: 0 | C55: 0 | E55: =IF(D55<C55, "Please budget additional staff", "Yes") -> Yes
A57: In House Suspension | B57: 0 | E57: =IF(D57<C57, "Please budget additional staff", "Yes") -> Yes | F57: 93512 | G57: =D57*F57 -> 0
A58: Consumer Science | B58: 0 | E58: Yes | F58: 93512 | G58: 0
A59: Business | B59: 0 | E59: Yes | F59: 93512 | G59: 0
A60: Video Production | B60: 0 | E60: Yes | F60: 93512 | G60: 0
A61: ROTC | B61: 0 | E61: Yes | F61: 93512 | G61: 0
A63: All General Education Teachers | B63: =SUM(B21:B22,B24:B32, B37:B47, B50:B54,B57:B61) -> 25 | D63: =SUM(D21:D22,D24:D32, D37:D47, D50:D54,D57:D61) -> 25 | G63: =SUM(G21:G61) -> 2337800
A66: Paraprofessionals:
A67: Mainstream Paras
A68: Preschool Para | B68: 1 | C68: 1 | D68: 1 | E68: =IF(D68<C68, "Please budget additional staff", "Yes") -> Yes | F68: 37989.25 | G68: =D68*F68 -> 37989.25
A69: Kindergarten Para | B69: 4 | C69: 3 | D69: 4 | E69: Yes | F69: 37989.25 | G69: 151957
A70: Mainstream Paras | B70: 4 | D70: 4 | E70: Yes | F70: 37989.25 | G70: 151957
A71: All General Education Paras | B71: =SUM(B68:B70) -> 9 | C71: 4 | D71: =SUM(D68:D70) -> 9 | G71: =SUM(G68:G70) -> 341903.25
A73: Special Programs
A74: Special Education | B74: If you plan to change special education staffing, contact Mike Lovato by 3/16/2020
A75: Adjustment Teachers | B75: 0 | E75: =IF(D75<>B75, "Contact Mike Lovato", "No change") -> No change | F75: 93512 | G75: =D75*F75 -> 0
A76: LEAP Teachers | B76: 0 | E76: No change | F76: 93512 | G76: 0
A77: CSA Teachers | B77: 3 | D77: 3 | E77: No change | F77: 93512 | G77: 280536
A78: Other Special Ed Teachers | B78: 4 | D78: 4 | E78: No change | F78: 93512 | G78: 374048
E79: No change
A80: Special Education Classroom Paras | B80: 9 | D80: 9 | E80: No change | F80: 37989.25 | G80: =D80*F80 -> 341903.25
A81: 504 /1to1 | B81: 0 | C81: Provided outside of SSB | D81: =B81 -> 0 | E81: Provided outside of SSB | F81: 37989.25 | G81: 0
A84: English Language Learners
A85: ELL Teachers | B85: 2.6 | C85: 3 | D85: 3 | E85: =IF(D85<C85, "Please budget additional staff", "Yes") -> Yes | F85: 93512 | G85: =D85*F85 -> 280536
A86: ELL Para | B86: 2 | D86: 2 | E86: Yes | F86: 37989.25 | G86: 75978.5
A87: ELL Tutor (Title III) | B87: 1 | C87: Provided outside of SSB | D87: =B87 -> 1 | E87: Provided outside of SSB | F87: 15750 | G87: 15750
A89: All Special Programs Teachers & Paras | B89: =SUM(B75:B87) -> 21.6 | C89: 3 | D89: =SUM(D85:D87,D75:D81) -> 22 | G89: =SUM(G85:G87,G75:G81) -> 1368751.75
A91: Student Support:
A92: Guidance Counselor | B92: 0 | E92: =IF(D92<C92, "Please budget additional staff", "Yes") -> Yes | F92: 107538.8 | G92: =D92*F92 -> 0
A93: Social Worker | B93: 1 | C93: Provided outside of SSB | D93: =B93 -> 1 | E93: Provided outside of SSB | F93: 109292.15 | G93: 109292.15
A94: Additional social workers | B94: 0 | E94: =IF(D94<C94, "Please budget additional staff", "Yes") -> Yes | F94: 109292.15 | G94: 0
A95: SEL Tutors: 18 hrs/week | B95: 0 | E95: Yes | F95: 18900 | G95: 0
A96: Tutors: 18 hrs/week | B96: 0 | E96: Yes | F96: 18900 | G96: 0
A97: Tutors: 15 hrs/week (Title I) | B97: 4 | D97: 5 | E97: Yes | F97: 14850 | G97: 74250
A98: Parent Liaisons: Stipended (Title I) | B98: 0 | E98: Yes | F98: 3000 | G98: 0
A99: Parent Liaisons: 18 hrs/week (Title I) | B99: 1 | D99: 1 | E99: Yes | F99: 11340 | G99: 11340
A100: Parent Liaison, full time | B100: 0 | E100: Yes | F100: =36865*1.1689 -> 43091.4985 | G100: 0
B101: =SUM(B92:B100) -> 6 | C101: 0 | D101: =SUM(D92:D100) -> 7 | G101: =SUM(G92:G100) -> 194882.15
A103: Facilities
A104: Security Guards | B104: 0 | C104: 0 | E104: =IF(D104<C104, "Please budget additional staff", "Yes") -> Yes | F104: 52524.62553 | G104: =D104*F104 -> 0
A105: Custodians | B105: 3 | D105: 3 | E105: Yes | F105: 56107.2 | G105: 168321.6
B106: =SUM(B104:B105) -> 3 | C106: 0 | D106: =SUM(D104:D105) -> 3 | G106: =SUM(G104:G105) -> 168321.6
A108: High School-Specific Positions
A109: Coordinator of Student Support Services | B109: 0 | E109: =IF(D109<C109, "Please budget additional staff", "Yes") -> Yes | F109: 146909.6898 | G109: =D109*F109 -> 0
A110: Discipline & Operations Specialist | B110: 0 | E110: Yes | F110: 126736.8136 | G110: 0
A111: Academic Chairs | B111: 0 | E111: Yes | F111: 135108.956 | G111: 0
A112: Director of the Freshman Academy | B112: 0 | E112: Yes | F112: 137154.9388 | G112: 0
A113: Student Services Specialist - Freshman Academy | B113: 0 | E113: Yes | F113: 117795.5936 | G113: 0
A114: Bursar/Financial Specialist | B114: 0 | E114: Yes | F114: 58072.20272 | G114: 0
A115: Clerk Schedulers | B115: 0 | E115: Yes | F115: 53207.8768 | G115: 0
A116: Administrator of Athletics | B116: 0 | E116: Yes | F116: 141670.7969 | G116: 0
A117: Student Activity Advisor | B117: 0 | E117: Yes | F117: 96122.31735 | G117: 0
B118: =SUM(B109:B117) -> 0 | C118: 0 | D118: =SUM(D109:D117) -> 0 | G118: =SUM(G109:G117) -> 0
A120: Other Positions
A121: Other (Please describe) | B121: 0 | E121: =IF(D121<C121, "Please budget additional staff", "Yes") -> Yes | F121: See James Hall and Linus Guillory to estimate salary + benefits | G121: =IFERROR(D121*F121, 0) -> 0
A122: Other (Please describe) | B122: 0 | E122: Yes | F122: See James Hall and Linus Guillory to estimate salary + benefits | G122: 0
B123: =SUM(B121:B122) -> 0 | D123: =SUM(D121:D122) -> 0 | G123: =SUM(G121:G122) -> 0
A125: Total Staffing
B126: =B123+B118+B106+B101+B89+B71+B63+B17+B10 -> 69.6 | D126: =D123+D118+D106+D101+D89+D71+D63+D17+D10 -> 71 | G126: =SUM(G10,G17,G63,G71,G89,G101,G106,G118, G123) -> 4928109.95
A128: Non-Personnel
A129: Instructional Supplies | B129: 37760 | D129: =91000-12197 -> 78803 | E129: =IF(D129<C129, "Please budget additional funds", "Yes") -> Yes | G129: =D129 -> 78803
A130: STEM Lead Stipends | B130: 0 | E130: Yes | G130: 0
A131: Enrichment | B131: 0 | E131: Yes | G131: 0
A132: Athletics: Coaches | B132: 0 | E132: Yes | G132: 0
A133: Athletics: Contracted Services | B133: 0 | E133: Yes | G133: 0
A134: Athletics: Transportation | B134: 0 | E134: Yes | G134: 0
A135: Athletics: Supplies & Uniforms | B135: 0 | E135: Yes | G135: 0
A136: Athletics: Rental Fees | B136: 0 | E136: Yes | G136: 0
A137: Student Activity Stipends | B137: 0 | E137: Yes | G137: 0
A138: Student Activity Supplies | B138: 0 | E138: Yes | G138: 0
A139: Dual Enrollment | B139: 0 | C139: Provided outside of SSB | D139: =B139 -> 0 | E139: Provided outside of SSB | G139: 0
A140: SCORE Peer Mediation | B140: 0 | C140: Provided outside of SSB | D140: 0 | E140: Provided outside of SSB | G140: 0
A141: Band camp | B141: 0 | C141: Provided outside of SSB | D141: 0 | E141: Provided outside of SSB | G141: 0
A142: Choral supplies | B142: 0 | C142: Provided outside of SSB | D142: 0 | E142: Provided outside of SSB | G142: 0
A143: Jr. Air Force ROTC Supplies & Equip. | B143: 0 | E143: =IF(D143<C143, "Please budget additional funds", "Yes") -> Yes | G143: 0
A144: Other (describe in column H) | E144: Yes | G144: 0
B145: =SUM(B129:B144) -> 37760 | D145: =SUM(D129:D144) -> 78803 | G145: =SUM(G129:G144) -> 78803
A147: Title I Review
A148: Coaches | B148: 1 | C148: 1 | D148: =SUM(D14:D15) -> 1 | E148: See below | F148: 97985 | G148: =D148*F148 -> 97985
A149: Parent Liaisons: Stipended | B149: 0 | D149: =D98 -> 0 | E149: See below | F149: 3000 | G149: 0
A150: Parent Liaisons: 18 hrs/week | B150: 1 | D150: 1 | E150: See below | F150: 11340 | G150: 11340
A151: Tutors: 15 hrs/wk | B151: 4 | D151: 4 | E151: See below | F151: 14850 | G151: 59400
A152: Total Title I Allocation | B152: 168725 | C152: 168725 | D152: =SUM(D148:D151) -> 6 | E152: =IF(G152<C152, "You have used "&ROUND(G152/C152*100, 0)&"% of your Title I budget", IF(G152>C152, "Exceeds Title I budget", "Yes")) -> Yes | G152: =SUM(G148:G151) -> 168725
A156: Total Budget
G157: =SUM(G126,G145) -> 5006912.95
